{"text_format":"1","workbook":"xlsx","n_sheets":2,"sheets":["Sheet1","Declaratieformulier"],"not_rendered":{"charts":0,"images":1,"macros":1,"external_links":0,"defined_names":4,"comments":1,"pivot_tables":0},"unopened":[],"bounds":{"document_bytes":16777216,"sheet_cells":100000,"rows_first":2000,"rows_last":500,"rows_between":2000,"halvings":0,"cell_chars":16384,"cell_head_chars":4096},"cells_cut":0,"cells_raw":0,"read":"whole","date_system":"1900"}

{"sheet":"Sheet1","index":0,"n_rows":25,"n_cols":4,"rows_kept":25,"cut":false,"hidden":true,"merged":[]}
["Company SAP code","Company name","Kies uw onderdeel","Company Code SAP"]
["003","REBO",{"$f":"B2","v":"REBO"},"003"]
["012","Diergeneeskunde",{"$f":"B3","v":"Diergeneeskunde"},"012"]
["013","Sociale Wetenschappen","Sociale Wetenschappen","013"]
["014","Geowetenschappen","Geowetenschappen","014"]
["018","Bètawetenschappen","Bètawetenschappen","018"]
["022","University College Utrecht","University College Utrecht","022"]
["030","Universiteitsbibliotheek","Universiteitsbibliotheek","030"]
["032","GDL","GDL","032"]
["052","Lustrum UU","Lustrum UU","052"]
["064","Geesteswetenschappen","Geesteswetenschappen","064"]
["070","UBD / Beleidsruimte","UBD / Beleidsruimte","070"]
["084 AD","UBD / Algemene Directie","UBD / Algemene Directie","084 AD"]
["084 AD - BS","UBD / Bestuurssecretariaat","UBD / Bestuurssecretariaat","084 AD - BS"]
["084 AD - JZ","UBD / Juridische Zaken","UBD / Juridische Zaken","084 AD - JZ"]
["084 IvD","UBD / IvD","UBD / IvD","084 IvD"]
["084 AD - USS","UBD / Summerschool","UBD / Summerschool","084 AD - USS"]
["084 O&O","UBD / Directie O&O","UBD / Directie O&O","084 O&O"]
["084 FCA","UBD / Directie FCA","UBD / Directie FCA","084 FCA"]
["084 ITS","UBD / Directie ITS ","UBD / Directie ITS ","084 ITS"]
["084 HR","UBD / Directie HR","UBD / Directie HR","084 HR"]
["084 C&M","UBD / Directie C&M","UBD / Directie C&M","084 C&M"]
["084 CWC","UBD / Directie CWC","UBD / Directie CWC","084 CWC"]
["084 C&M - UF","UBD / Utrechts Universiteitsfonds","UBD / Utrechts Universiteitsfonds","084 C&M - UF"]
["084 FSC","UBD / FSC","UBD / FSC","084 FSC"]

{"sheet":"Declaratieformulier","index":1,"n_rows":59,"n_cols":22,"rows_kept":59,"cut":false,"hidden":false,"merged":[[24,18,24,19],[22,5,22,19],[46,2,46,3],[51,1,51,19],[46,5,46,6],[46,11,46,15],[46,18,46,19],[34,5,34,16],[34,18,34,19],[28,2,28,3],[36,2,36,3],[34,2,34,3],[26,18,26,19],[26,2,26,3],[30,18,30,19],[44,8,44,9],[46,8,46,9],[41,5,41,10],[52,1,52,19],[59,10,59,19],[58,10,58,19],[58,0,58,7],[59,0,59,7],[55,1,55,19],[53,1,53,19],[2,0,2,2],[19,0,19,2],[44,5,44,6],[44,11,44,15],[3,0,3,15],[4,0,4,19],[8,10,8,19],[10,10,10,19],[38,2,38,3],[37,5,37,10],[36,18,36,19],[38,18,38,19],[32,18,32,19],[32,2,32,3],[36,5,36,16],[8,0,8,8],[63,12,63,20],[31,5,31,10],[62,12,62,20],[48,18,48,19],[33,5,33,10],[35,5,35,10],[50,1,50,19],[49,6,49,11],[56,1,56,19],[48,12,48,16],[40,18,40,19],[43,5,43,10],[44,2,44,3],[44,18,44,19],[45,5,45,10],[47,5,47,10],[0,11,0,19],[40,2,40,3],[29,5,29,10],[27,5,27,10],[26,5,26,16],[38,5,38,16],[40,5,40,16],[39,5,39,10],[18,10,18,19],[20,10,20,19],[14,0,14,3],[14,10,14,19],[16,10,16,19],[28,18,28,19],[28,5,28,16],[30,5,30,16],[25,5,25,10],[32,5,32,16],[42,5,42,17],[10,0,10,8],[14,5,14,8],[16,0,16,8],[18,0,18,8],[20,0,20,8],[30,2,30,3]]}
[null,null,null,null,null,null,null,null,null,null,null,"Directie Financiën, Control & Administratie                     Administratief Service Centrum"]
[]
["C1_NL"]
["Declaratieformulier voor niet UU-medewerkers"]
["Dit formulier is alleen bestemd voor particulieren met een Nederlandse bankrekening. Wanneer het te declareren bedrag bestemd is voor uw werkgever, vraag uw werkgever dan om een factuur te sturen. Wanneer het bedrag naar een buitenlandse bankrekening betaald moet worden, gebruik dan het C3 formulier."]
[]
["Op te vragen bij uw contactpersoon bij de faculteit of dienst:",null,null,null,null,null,null,null,null,null,null,null,null,null,null,{"$f":"IF(A60=\"\",\"\",\"Datum:\")","v":""},{"$f":"IF($A$60,$A$60,\"\")","v":""}]
["Naam faculteit/dienst",null,null,null,null,null,null,null,null,null,"Bedrijfsnummer SAP"]
["Geesteswetenschappen",null,null,null,null,null,null,null,null,null,{"$f":"IFERROR(VLOOKUP($A$9,Sheet1!$C$2:$D$25,2,0),\"\" )","v":"064"}]
["Uw contactpersoon bij de faculteit/dienst",null,null,null,null,null,null,null,null,null,"WBS element"]
["Judith Lavrijssen",null,null,null,null,null,null,null,null,null,"GW.000487.1.1"]
[]
["In te vullen door declarant:"]
["Voorletters:",null,null,null,null,"Tussenvoegsels:",null,null,null,null,"Achternaam:"]
[]
["Woonadres:",null,null,null,null,"    ",null,null,null,null,"Postcode + Woonplaats:"]
[]
["IBAN (Nederlands + rekeninghouder is particulier): ",null,null,null,null,null,null,null,null,null,"Burgerservicenummer:"]
[]
["Uw e-mailadres:",null,null,null,null,null,null,null,null,null,"Telefoon- / mobiel nummer:"]
[]
[]
["Onkosten betreft:"]
[]
["Nr.:",null,"Datum kosten:",null,null,"Omschrijving:",null,null,null,null,null,null,null,null,null,null,null,null,"Declaratie in Euro's "]
[null,null,null,null,null,null,null,null,null,null,null,null,null,null,null,null,null,null,null,null,null,"Km's vergoeding"]
[1,null,null,null,null,null,null,null,null,null,null,null,null,null,null,null,null,null,0,null,null,"Openbaar vervoer"]
[null,null,null,null,null,null,null,null,null,null,null,null,null,null,null,null,null,null,null,null,null,"Overige onkosten"]
[2,null,null,null,null,null,null,null,null,null,null,null,null,null,null,null,null,null,0]
[]
[3,null,null,null,null,null,null,null,null,null,null,null,null,null,null,null,null,null,0]
[]
[4,null,null,null,null,null,null,null,null,null,null,null,null,null,null,null,null,null,0,null,null,"``"]
[]
[5,null,null,null,null,null,null,null,null,null,null,null,null,null,null,null,null,null,0]
[]
[6,null,null,null,null,null,null,null,null,null,null,null,null,null,null,null,null,null,0]
[]
[7,null,null,null,null,null,null,null,null,null,null,null,null,null,null,null,null,null,0]
[]
[8,null,null,null,null,null,null,null,null,null,null,null,null,null,null,null,null,null,0]
[]
[null,null,null,null,null,"Bij kilometervergoeding start- en eindpostcode vermelden (€ 0,19 per km)."]
[]
[9,null,null,null,null,"Start Postcode",null,null,"Eind Postcode",null,null,"Totaal aantal KM's",null,null,null,null,null,null,{"$f":"IF($Q$45=\"\",\"\",$Q$45*0.19)","v":""}]
[]
[10,null,null,null,null,"Start Postcode",null,null,"Eind Postcode",null,null,"Totaal aantal KM's",null,null,null,null,null,null,{"$f":"IF($Q$47=\"\",\"\",$Q$47*0.19)","v":""}]
[]
[null,null,null,null,null,null,null,null,null,null,null,null,"Totaal bedrag",null,null,null,null,null,{"$f":"SUM(S27:T47)","v":0}]
[]
["-","Indien uw declaratieformulier niet volledig is ingevuld of niet is voorzien van alle bewijsstukken, kan uw declaratie niet in behandeling worden genomen."]
["-","Let bij de bewijsstukken op het volgende:"]
[null,"- Scan de bonnen in dezelfde volgorde als de kosten op de regels zijn ingevoerd"]
[null,"- Combineer alle bewijsstukken en dit formulier tot één PDF/A bestand"]
[null,"- Bewijsstukken die als losse bijlage worden aangeleverd, worden door het systeem NIET samengevoegd, maar zijn verloren."]
["-","Het gecombineerde PDF/A bestand kan via mail worden verstuurd naar infocrediteuren@uu.nl"]
["-","Door het invullen van de datum hieronder, verklaar ik deze declaratie naar waarheid te hebben ingevuld.\""]
[]
["Datum:",null,null,null,null,null,null,null,null,null,"Na bovenstaande ingevuld te hebben, doorsturen naar het ASC door middel van de groene verzendknop."]